bitfinex/quotes_ETHUSD_20251004
["timestamp","ask_amount","ask_price","bid_price","bid_amount"]
[1759571449684,17.56010659,4493.9,4493.8,0.001]
[1759571452828,6.39953578,4493.3,4493.2,2.504]
[1759571453541,7.06756448,4493.3,4493.2,2.504]
[1759571461726,7.53966448,4493.3,4493.2,2.504]
[1759571461958,7.06756448,4493.3,4493.2,2.504]
[1759571464461,4.84202869,4493.3,4493.2,2.504]
[1759571464650,4.16199999,4493.1,4492.7,0.001]
[1759571465366,0.20027287,4493.0,4492.7,0.001]
[1759571465525,4.36227286,4493.0,4492.7,0.001]
[1759571465942,4.36227286,4493.0,4492.9,2.505]
[1759571472958,0.20027287,4493.0,4492.9,2.505]
[1759571487013,0.65557287,4493.0,4492.9,2.505]
[1759571487307,4.81757286,4493.0,4492.9,0.001]
[1759571487469,7.04325725,4493.0,4492.9,2.505]
[1759571487676,7.74778298,4493.0,4492.9,2.505]
[1759571490178,4.81757286,4493.0,4492.9,2.505]
[1759571490612,7.04325725,4493.0,4492.9,2.505]
[1759571491009,4.81757286,4493.0,4492.9,2.505]
[1759571491237,7.04325725,4493.0,4492.9,2.505]
[1759571496235,4.81757286,4493.0,4492.9,2.505]
[1759571498548,7.04325725,4493.0,4492.9,2.505]
[1759571500428,7.97034204,4493.0,4492.9,2.505]
[1759571502748,7.97034204,4493.0,4492.7,0.001]
[1759571502928,2.22588256,4492.6,4492.4,0.001]
[1759571503546,0.66928398,4492.5,4492.4,0.001]
[1759571504152,0.66928398,4492.5,4492.4,2.505]
[1759571504849,0.66928398,4492.5,4492.4,0.001]
[1759571505021,0.66928398,4492.5,4492.4,2.505]
[1759571505225,2.89521608,4492.5,4492.4,2.505]
[1759571505945,0.66928398,4492.5,4492.4,2.505]
[1759571506355,7.05421607,4492.5,4492.4,2.505]
[1759571507429,7.9822161,4492.5,4492.4,2.505]
[1759571507950,10.3822161,4492.5,4492.4,0.001]
[1759571508151,6.11201611,4492.5,4492.4,0.001]
[1759571508955,8.61601611,4492.5,4492.4,0.001]
[1759571515765,9.24961611,4492.5,4492.4,0.001]
[1759571518057,9.36081611,4492.5,4492.4,0.001]
[1759571518634,10.69581611,4492.5,4492.4,0.001]
[1759571518947,9.36081611,4492.5,4492.4,0.001]
[1759571532704,13.5198161,4492.5,4492.4,0.001]
[1759571534568,13.99875562,4492.5,4492.4,0.001]
[1759571538794,18.37454645,4492.5,4492.4,0.001]
[1759571543039,18.37454645,4492.5,4491.9,0.001]
[1759571543196,4.37579083,4491.9,4490.7,0.0635]
[1759571543397,4.37579083,4491.9,4490.0,0.134]
[1759571543398,2.22655134,4491.3,4490.8,0.0635]
[1759571543909,2.22658306,4491.2,4490.8,0.0635]
[1759571544102,2.22662825,4491.1,4490.8,0.0635]
[1759571544732,2.22647068,4491.5,4490.8,0.0635]
[1759571544894,0.134,4491.0,4490.8,0.0635]
[1759571545296,2.36071244,4491.0,4490.9,0.0635]
[1759571546222,0.134,4491.0,4490.9,0.0635]
[1759571547031,2.36067557,4491.0,4490.9,0.0635]
[1759571548236,2.22673303,4490.9,4490.1,0.01]
[1759571548434,2.22673303,4490.9,4490.6,0.0635]
[1759571548736,2.22667826,4491.0,4490.7,0.0635]
[1759571548935,0.134,4490.8,4490.1,0.01]
[1759571549444,0.134,4490.8,4490.2,0.0635]
[1759571550031,2.36078627,4490.8,4490.2,0.0635]
[1759571550236,0.134,4490.8,4490.2,0.0635]
[1759571550412,2.22672748,4490.9,4490.2,0.0635]
[1759571550604,2.22669005,4491.0,4490.2,0.0635]
[1759571550799,9.45,4491.5,4490.2,0.0635]
[1759571550800,0.134,4490.8,4490.2,0.0635]
[1759571552019,2.36081436,4490.8,4490.2,0.0635]
[1759571552426,2.2267411,4490.9,4490.2,0.0635]
[1759571552648,0.134,4490.7,4490.2,0.0635]
[1759571552840,0.134,4490.7,4490.3,0.0635]
[1759571553961,2.36083274,4490.7,4490.3,0.0635]
[1759571554159,2.36083274,4490.7,4490.2,0.1112]
[1759571554350,2.22683274,4490.7,4490.2,0.1112]
[1759571554538,2.65463274,4490.7,4490.2,0.1112]
[1759571554738,0.134,4490.6,4490.2,0.1112]
[1759571555095,2.36088263,4490.6,4490.2,0.1747]
[1759571555429,2.22688263,4490.6,4490.2,0.1747]
[1759571555786,0.1747,4490.5,4490.2,0.1747]
[1759571556222,0.1747,4490.5,4490.2,0.1112]
[1759571559472,4.30869999,4490.5,4490.2,0.1112]
[1759571560039,4.13399999,4490.5,4490.2,0.1112]
[1759571560269,0.1975,4490.4,4490.2,0.1112]
[1759571560975,0.1975,4490.4,4490.3,0.0635]
[1759571561173,0.1975,4490.4,4490.3,0.08577022]
[1759571561476,0.1975,4490.4,4490.3,0.02227022]
[1759571561987,4.13399999,4490.5,4490.3,0.08577022]
[1759571562280,0.1112,4490.9,4490.4,0.2437799]
[1759571562446,0.1112,4490.9,4490.3,0.08577022]
[1759571562447,0.1112,4490.9,4490.5,0.08576923]
[1759571562636,4.13399999,4491.4,4490.8,0.1112]
[1759571562839,4.37777989,4491.4,4490.8,0.1112]
[1759571563071,4.37777989,4491.4,4490.9,0.0635]
[1759571563281,4.37777989,4491.4,4491.0,2.5695]
[1759571563463,4.37777989,4491.4,4491.0,2.77407]
[1759571563773,4.37777989,4491.4,4491.1,0.0635]
[1759571564186,4.37777989,4491.4,4491.2,0.0635]
[1759571564934,4.37777989,4491.4,4491.0,2.77407]
[1759571565848,0.2437799,4491.4,4491.0,2.77407]
[1759571566697,0.2437799,4491.4,4491.0,2.83757]
[1759571567958,0.2437799,4491.4,4491.0,2.77407]
[1759571568163,0.2437799,4491.4,4491.1,0.37429325]
[1759571568390,11.18399999,4491.5,4491.1,0.31079325]
[1759571568598,11.18399999,4491.5,4491.2,0.0635]
[1759571568798,11.18399999,4491.5,4491.3,0.0635]
[1759571569095,2.22618588,4492.0,4491.4,0.08576477]
[1759571569096,0.66820576,4491.9,4491.4,0.08576477]
[1759571569397,0.1112,4492.2,4491.5,0.1747]
[1759571569600,0.2969227,4492.0,4491.5,0.1747]
[1759571569761,0.2969227,4492.0,4491.6,0.08576378]
[1759571569961,0.2969227,4492.0,4491.7,2.505]
[1759571570296,0.2969227,4492.0,4491.8,0.02226278]
[1759571570529,0.1112,4492.2,4491.8,0.02226278]
[1759571570666,0.4298,4492.5,4491.8,0.33369628]
[1759571570667,2.22797075,4492.5,4491.8,0.33369628]
[1759571570867,0.66813433,4492.4,4491.8,0.1747]
[1759571571057,0.66813433,4492.4,4491.8,0.1112]
[1759571573078,2.8941263,4492.4,4491.8,0.1112]
[1759571573815,0.66813433,4492.4,4491.8,0.1112]
[1759571574683,4.13399999,4492.3,4491.8,0.1112]
[1759571575108,5.30732999,4492.3,4491.8,0.1112]
[1759571575313,0.4361,4492.2,4491.9,2.505]
[1759571575500,2.33737987,4492.0,4491.9,2.505]
[1759571575820,2.77347987,4492.0,4491.9,2.505]
[1759571577327,15.26720526,4492.0,4491.1,0.001]
[1759571577673,2.22657641,4491.2,4491.1,0.001]
[1759571578210,2.66267641,4491.2,4491.1,0.001]
[1759571578423,3.3309953,4491.2,4491.1,0.001]
[1759571582564,7.46499529,4491.2,4491.1,0.001]
[1759571582748,8.4341454,4491.2,4491.1,0.001]
[1759571587326,8.5453454,4491.2,4491.1,0.001]
[1759571590279,8.1092454,4491.2,4491.1,0.001]
[1759571590452,8.5453454,4491.2,4491.1,0.001]
[1759571592054,7.14009529,4491.2,4491.1,0.001]
[1759571594968,4.91351888,4491.2,4491.1,0.001]
[1759571596652,4.13399999,4491.2,4491.1,0.1122]
[1759571596993,4.24519999,4491.2,4491.1,2.506]
[1759571598570,4.24519999,4491.2,4491.1,0.001]
[1759571598792,4.24519999,4491.2,4491.1,2.506]
[1759571598956,6.9078764,4491.2,4491.1,2.506]
[1759571599410,7.99601419,4491.2,4491.1,0.001]
[1759571604478,6.35977472,4490.8,4490.7,2.505]
[1759571604676,6.47097472,4490.8,4490.7,2.505]
[1759571605001,6.94007472,4490.8,4490.7,2.505]
[1759571606097,7.92359266,4490.8,4490.7,2.505]
[1759571606501,2.22682432,4490.7,4490.6,0.001]
[1759571606996,2.69592432,4490.7,4490.6,0.001]
[1759571607801,3.36437277,4490.7,4490.6,0.001]
[1759571607987,1.13754845,4490.7,4490.6,0.001]
[1759571608180,3.36437277,4490.7,4490.6,0.001]
[1759571609404,4.34790445,4490.7,4490.6,0.001]
[1759571610405,8.48090444,4490.7,4490.6,0.001]
[1759571611401,10.88090444,4490.7,4490.6,0.001]
[1759571611866,13.38590444,4490.7,4490.6,0.001]
[1759571613903,10.98590444,4490.7,4490.6,0.001]
[1759571622316,13.38590444,4490.7,4490.6,0.001]
[1759571623901,20.43590444,4490.7,4490.6,0.001]
[1759571624104,20.43590444,4490.7,4490.2,0.001]
[1759571624105,2.22702269,4490.3,4490.2,0.001]
[1759571624295,4.84322269,4490.3,4490.2,0.001]
[1759571624496,5.27882269,4490.3,4490.2,0.001]
[1759571624995,5.36796504,4490.3,4490.2,0.001]
[1759571625709,16.54996503,4490.3,4490.2,0.001]
[1759571625878,17.53349671,4490.3,4490.2,0.001]
[1759571626081,6.35149672,4490.3,4490.2,0.001]
[1759571636038,6.98509672,4490.3,4490.2,0.001]
[1759571638021,9.38509672,4490.3,4490.2,0.001]
[1759571640241,2.22756838,4489.2,4489.1,0.01]
[1759571640902,2.33876838,4489.2,4489.1,0.01]
[1759571642839,5.20826838,4489.2,4489.1,0.01]
[1759571643986,4.73876838,4489.2,4489.1,0.01]
[1759571644947,5.20826838,4489.2,4489.1,0.01]
[1759571645139,6.19180006,4489.2,4489.1,0.01]
[1759571647982,17.37380005,4489.2,4489.1,0.01]
[1759571648474,19.87980005,4489.2,4489.1,0.01]
[1759571649087,13.69319999,4489.2,4489.1,0.01]
[1759571649243,15.92076837,4489.2,4489.1,0.0735]
[1759571650462,15.92076837,4489.2,4489.1,0.0745]
[1759571650848,16.03196837,4489.2,4489.1,0.0745]
[1759571651569,16.03196837,4489.2,4489.1,0.011]
[1759571652751,16.03196837,4489.2,4489.1,0.0745]
[1759571654051,16.03196837,4489.2,4489.1,0.011]
[1759571655266,19.00746837,4489.2,4489.1,0.011]
[1759571662678,19.64106837,4489.2,4489.1,0.011]
[1759571667862,19.64106837,4489.2,4488.6,0.001]
[1759571667863,4.62766763,4489.0,4488.6,0.001]
[1759571668129,2.33901651,4488.7,4488.6,0.001]
[1759571668325,4.73901651,4488.7,4488.6,0.001]
[1759571668516,2.42818906,4488.7,4488.6,0.001]
[1759571668718,4.82818906,4488.7,4488.6,0.001]
[1759571677664,5.27428906,4488.7,4488.6,0.001]
[1759571677958,4.82818906,4488.7,4488.6,0.001]
[1759571680383,5.27428906,4488.7,4488.6,0.001]
[1759571680552,5.82909016,4488.7,4488.6,0.001]
[1759571680752,8.78219016,4488.7,4488.6,0.001]
[1759571680983,6.27519016,4488.7,4488.6,0.001]
[1759571684451,6.90879016,4488.7,4488.6,0.001]
[1759571686698,8.33609016,4488.7,4488.6,0.001]
[1759571686904,8.78219016,4488.7,4488.6,0.001]
[1759571688068,9.41579016,4488.7,4488.6,0.001]
[1759571690381,13.07008144,4488.7,4488.6,0.001]
[1759571692624,10.56308144,4488.7,4488.6,0.001]
[1759571692812,13.07008144,4488.7,4488.6,0.001]
[1759571694040,5.82909016,4488.7,4488.6,0.001]
[1759571694340,8.33609016,4488.7,4488.6,0.001]
[1759571694637,2.31698906,4488.7,4488.6,0.001]
[1759571694844,2.31698906,4488.7,4488.6,0.0645]
[1759571695139,2.31698906,4488.7,4488.6,0.001]
[1759571695645,2.31698906,4488.7,4488.6,0.0645]
[1759571695919,2.31698906,4488.7,4488.6,0.001]
[1759571699021,2.2279287,4488.5,4488.4,0.0635]
[1759571699232,2.22800588,4488.4,4487.4,0.02228461]
[1759571699403,2.22781,4488.8,4487.9,0.0635]
[1759571699720,0.51068105,4488.3,4487.9,0.0635]
[1759571701415,0.51068105,4488.3,4487.2,0.02228561]
[1759571701416,2.73870922,4488.3,4487.2,0.02228561]
[1759571701618,0.51068105,4488.3,4487.3,0.0635]
[1759571702334,2.73869895,4488.3,4487.3,0.0635]
[1759571702531,0.51068105,4488.3,4487.3,0.0635]
[1759571703494,0.51068105,4488.3,4487.3,0.08578511]
[1759571703899,0.51068105,4488.3,4487.4,0.0635]
[1759571704102,0.51068105,4488.3,4487.4,0.29593843]
[1759571704307,2.73872809,4488.3,4487.5,0.0635]
[1759571704733,0.1112,4488.2,4487.6,0.1112]
[1759571705406,0.1112,4488.1,4487.6,0.1112]
[1759571705606,0.1112,4488.1,4487.7,0.0635]
[1759571706598,0.1112,4488.1,4487.6,0.1122]
[1759571708049,0.5741,4488.1,4487.6,0.1122]
[1759571708435,2.33930061,4488.2,4487.6,0.1122]
[1759571708741,0.66877032,4488.0,4487.6,0.1122]
[1759571710415,0.66877032,4488.0,4487.6,0.1757]
[1759571711719,0.66877032,4488.0,4487.6,0.1122]
[1759571711915,0.66877032,4488.0,4487.6,0.1757]
[1759571712114,0.66877032,4488.0,4487.7,0.0635]
[1759571712444,0.66877032,4488.0,4487.8,0.02228263]
[1759571712822,0.66877032,4488.0,4487.8,0.08578263]
[1759571713148,0.66877032,4488.0,4487.8,0.02228263]
[1759571713749,0.66877032,4488.0,4487.7,0.02228312]
[1759571713907,0.66877032,4488.0,4487.6,2.88747]
[1759571714509,0.66877032,4488.0,4487.7,0.02228312]
[1759571715621,0.66877032,4488.0,4487.6,2.88747]
[1759571715826,1.13167032,4488.0,4487.6,2.6192]
[1759571716213,0.4629,4488.0,4487.6,2.6192]
[1759571716413,0.1112,4488.2,4487.7,0.02228312]
[1759571716649,0.66877032,4487.9,4487.7,0.02228312]
[1759571718173,2.22750705,4489.4,4487.7,0.29278143]
[1759571718329,0.1112,4488.4,4487.8,0.0635]
[1759571718526,0.66874348,4488.1,4487.9,0.02228213]
[1759571720241,0.4629,4488.0,4487.7,2.507]
[1759571720432,0.66874348,4488.1,4487.7,2.507]
[1759571720644,0.4417,4487.9,4487.7,2.507]
[1759571720940,2.22811106,4488.2,4487.7,2.507]
[1759571720941,2.22813548,4488.1,4487.7,2.507]
[1759571721131,0.4417,4488.0,4487.7,2.507]
[1759571721456,0.66877032,4488.0,4487.7,2.507]
[1759571722272,0.66877032,4488.0,4487.8,0.02228263]
[1759571723433,0.66877032,4488.0,4487.8,0.28643089]
[1759571723633,0.66877032,4488.0,4487.7,2.507]
[1759571723834,0.4417,4487.9,4487.7,2.507]
[1759571724134,0.4417,4487.8,4487.7,2.507]
[1759571726079,2.22831294,4487.7,4487.6,0.001]
[1759571726582,2.67001294,4487.7,4487.6,0.001]
[1759571726880,3.33890851,4487.7,4487.6,0.001]
[1759571731906,7.4599085,4487.7,4487.6,0.001]
[1759571732198,14.89296951,4487.7,4487.6,0.001]
[1759571732362,10.77196952,4487.7,4487.6,0.001]
[1759571733895,6.67597824,4487.7,4487.6,0.001]
[1759571734103,5.29720851,4487.7,4487.6,0.001]
[1759571735706,3.06889557,4487.7,4487.6,0.001]
[1759571736001,0.66889557,4487.7,4487.6,0.001]
[1759571737610,0.66889557,4487.7,4487.6,2.508]
[1759571737897,0.002,4488.1,4487.6,2.5715]
[1759571738098,0.66878075,4487.9,4487.7,0.29055312]
[1759571739705,0.66878075,4487.9,4487.7,0.35405312]
[1759571740006,0.66878075,4487.9,4487.7,0.29055312]
[1759571740573,0.66878075,4487.9,4487.7,0.35405312]
[1759571740918,0.002,4488.1,4487.7,0.35405312]
[1759571741122,0.002,4488.1,4487.8,0.29732531]
[1759571741306,0.66876286,4488.0,4487.9,0.02228213]
[1759571742722,0.002,4488.1,4487.8,0.29732531]
[1759571742895,0.002,4488.1,4487.9,0.1112]
[1759571743217,0.002,4488.1,4487.9,0.1747]
[1759571743420,0.002,4488.1,4488.0,0.02228163]
[1759571743610,0.002,4488.1,4487.9,0.1747]
[1759571745593,0.002,4488.1,4487.9,0.1112]
[1759571745794,0.002,4488.1,4487.9,0.40285253]
[1759571747305,0.4629,4488.1,4487.9,0.1112]
[1759571750552,0.002,4488.1,4487.9,0.1112]
[1759571756435,0.002,4488.1,4487.6,0.001]
[1759571756761,0.4669,4488.0,4487.7,2.6182]
[1759571756968,0.4669,4487.9,4487.7,2.6182]
[1759571757533,0.4669,4487.8,4487.7,2.6182]
[1759571758441,0.66875839,4487.9,4487.7,2.6182]
[1759571758654,0.66875839,4487.9,4487.8,0.02228263]
[1759571758859,0.002,4488.1,4487.8,0.02228263]
[1759571759165,0.66874795,4488.0,4487.8,0.02228263]
[1759571759573,0.002,4488.1,4487.9,0.1112]
[1759571759772,0.002,4488.1,4488.0,0.31252189]
[1759571760269,0.002,4488.1,4488.0,0.37602189]
[1759571760854,0.002,4488.1,4488.0,0.31252189]
[1759571761255,0.002,4488.1,4488.0,0.35374026]
[1759571761455,0.002,4488.1,4488.0,0.31252189]
[1759571761640,0.002,4488.1,4488.0,0.29024026]
[1759571763493,0.002,4488.1,4488.0,0.37602189]
[1759571763700,0.002,4488.1,4488.0,1.17679484]
[1759571764413,0.002,4488.1,4488.0,0.37602189]
[1759571764577,0.002,4488.1,4488.0,2.60418588]
[1759571764895,0.002,4488.1,4488.0,0.37602189]
[1759571765112,0.002,4488.1,4488.0,2.60418588]
[1759571767294,0.002,4488.1,4488.0,3.59230299]
[1759571767712,0.002,4488.1,4488.0,6.09930299]
[1759571768015,0.002,4488.1,4488.0,4.80509412]
[1759571768222,0.002,4488.1,4488.0,19.30509412]
[1759571768423,0.002,4488.1,4488.0,21.53325811]
[1759571768893,0.002,4488.1,4488.0,19.24159412]
[1759571769418,0.002,4488.1,4488.0,18.04204026]
[1759571769641,0.002,4488.1,4488.0,20.27020425]
[1759571770938,0.002,4488.1,4488.0,15.53504026]
[1759571771106,0.002,4488.1,4488.0,18.04204026]
[1759571772025,0.002,4488.1,4488.0,3.54204026]
[1759571772232,0.002,4488.1,4488.0,4.74159412]
[1759571772465,0.002,4488.1,4488.0,2.90844026]
[1759571774533,0.4689,4488.1,4488.0,2.90844026]
[1759571775456,0.002,4488.1,4488.0,0.1112]
[1759571775751,0.4689,4488.1,4488.0,2.507]
[1759571775950,0.9378,4488.1,4488.0,2.507]
[1759571776119,3.16591434,4488.1,4488.0,2.507]
[1759571776314,3.70550902,4488.1,4488.0,2.507]
[1759571785577,3.81670902,4488.1,4488.0,2.507]
[1759571794411,3.34980902,4488.1,4488.0,2.507]
[1759571794618,3.78550902,4488.1,4488.0,2.507]
[1759571802025,3.34980902,4488.1,4488.0,2.507]
[1759571802682,0.5821,4488.1,4488.0,2.507]
[1759571804189,2.81021434,4488.1,4488.0,2.507]
[1759571807304,0.5821,4488.1,4488.0,2.507]
[1759571810623,2.81021434,4488.1,4488.0,2.507]
[1759571811447,0.5821,4488.1,4488.0,2.507]
[1759571812630,0.4709,4488.1,4488.0,2.507]
[1759571815452,4.6609,4488.1,4488.0,2.507]
[1759571817415,0.002,4488.1,4488.0,2.507]
[1759571817622,0.002,4488.1,4488.0,2.6182]
[1759571820072,0.002,4488.1,4488.0,0.1112]
[1759571820237,2.68751434,4488.1,4488.0,2.507]
[1759571820730,0.4594,4488.1,4488.0,2.507]
[1759571820931,2.68751434,4488.1,4488.0,2.507]
[1759571821449,0.002,4488.1,4488.0,2.507]
[1759571822986,2.23011434,4488.1,4488.0,2.507]
[1759571823871,2.68751434,4488.1,4488.0,2.507]
[1759571824073,0.4594,4488.1,4488.0,2.507]
[1759571824276,0.002,4488.1,4488.0,2.507]
[1759571830186,4.192,4488.1,4488.0,2.507]
[1759571831714,6.87751434,4488.1,4488.0,2.507]
[1759571832278,4.6494,4488.1,4488.0,2.507]
[1759571833279,6.87751434,4488.1,4488.0,2.507]
[1759571833885,4.6494,4488.1,4488.0,2.507]
[1759571837843,6.87751434,4488.1,4488.0,2.507]
[1759571838342,7.54628167,4488.1,4488.0,2.507]
[1759571840541,8.07763463,4488.1,4488.0,2.507]
[1759571840841,8.51183463,4488.1,4488.0,2.507]
[1759571842449,2.22820103,4488.0,4487.8,2.507]
[1759571842645,2.66240103,4488.0,4487.8,2.507]
[1759571843226,0.66882399,4487.9,4487.8,2.507]
[1759571843748,2.89703763,4487.9,4487.8,2.507]
[1759571844046,3.33123763,4487.9,4487.8,2.507]
[1759571845836,2.89703763,4487.9,4487.8,2.507]
[1759571846014,3.33123763,4487.9,4487.8,2.507]
[1759571848048,7.52123763,4487.9,4487.8,2.507]
[1759571849493,4.85882399,4487.9,4487.8,2.507]
[1759571850571,4.19,4487.9,4487.8,2.507]
[1759571850772,4.85877777,4487.9,4487.8,2.507]
[1759571859527,5.29967777,4487.9,4487.8,2.507]
[1759571859818,7.52789141,4487.9,4487.8,2.507]
[1759571860323,5.29967777,4487.9,4487.7,2.507]
[1759571860497,4.96997777,4487.9,4487.7,2.507]
[1759571860695,0.4409,4487.8,4487.7,2.507]
[1759571861083,1.10972101,4487.8,4487.7,2.507]
[1759571862924,0.66882101,4487.8,4487.7,2.507]
[1759571863398,1.10972101,4487.8,4487.7,2.507]
[1759571865923,5.29972101,4487.8,4487.7,2.507]
[1759571867220,4.19,4487.8,4487.7,2.6182]
[1759571867526,4.19,4487.8,4487.7,2.869]
[1759571869890,4.19,4487.8,4487.7,2.6182]
[1759571871842,4.192,4487.9,4487.7,2.6182]
[1759571873255,0.002,4487.9,4487.7,2.6182]
[1759571879345,0.002,4487.9,4487.8,0.02228263]
[1759571880723,0.002,4487.9,4487.7,2.6182]
[1759571881061,0.002,4487.9,4487.7,2.96634448]
[1759571883258,0.4744,4487.9,4487.8,2.507]
[1759571883430,0.002,4487.9,4487.8,2.507]
[1759571883630,4.192,4487.9,4487.8,2.507]
[1759571890779,4.6644,4487.9,4487.8,2.507]
[1759571891288,4.192,4487.9,4487.8,2.507]
[1759571891488,4.6644,4487.9,4487.8,2.507]
[1759571891688,4.192,4487.9,4487.8,2.507]
[1759571892895,4.6644,4487.9,4487.8,2.507]
[1759571894001,4.192,4487.9,4487.8,2.507]
[1759571900898,4.192,4487.9,4487.8,3.30574476]
[1759571901080,4.192,4487.9,4487.8,3.77607293]
[1759571902204,4.192,4487.9,4487.8,2.97732817]
[1759571903781,4.6544,4487.9,4487.8,2.97732817]
[1759571904090,4.192,4487.9,4487.8,2.507]
[1759571904832,4.192,4487.9,4487.8,3.32802739]
[1759571907991,4.6544,4487.9,4487.8,2.52928263]
[1759571908192,4.192,4487.9,4487.8,2.52928263]
[1759571908375,4.6544,4487.9,4487.8,2.52928263]
[1759571908798,4.6544,4487.9,4487.8,2.507]
[1759571910497,4.192,4487.9,4487.7,0.90266752]
[1759571911519,0.4394,4487.8,4487.7,0.90266752]
[1759571911840,0.4394,4487.8,4487.7,3.40966752]
[1759571912025,4.192,4487.9,4487.7,3.40966752]
[1759571915605,4.192,4487.9,4487.8,0.02228263]
[1759571917752,4.192,4487.9,4487.8,0.82102739]
[1759571918051,4.192,4487.9,4487.8,1.28427779]
[1759571921373,4.192,4487.9,4487.8,1.26199516]
[1759571926209,4.192,4487.9,4487.8,0.4632504]
[1759571926378,4.192,4487.9,4487.7,2.61092276]
[1759571927598,0.002,4487.9,4487.8,0.02228263]
[1759571927897,0.002,4488.6,4488.5,2.22791578]
[1759571928066,0.002,4488.6,4488.5,6.26420869]
[1759571928267,0.002,4488.6,4488.5,6.32770869]
[1759571928568,0.002,4488.6,4488.5,23.05562447]
[1759571929198,0.002,4488.6,4488.5,25.16933836]
[1759571929694,0.002,4488.6,4488.5,26.76970836]
[1759571930083,0.002,4488.6,4488.5,26.06019136]
[1759571930283,0.002,4488.6,4488.5,25.55784236]
[1759571930491,0.08912824,4489.7,4488.7,2.22781651]
[1759571930797,0.01,4489.9,4488.9,2.22771725]
[1759571931098,0.08912665,4489.8,4489.3,2.22751617]
[1759571931327,0.01,4489.9,4489.4,2.52827469]
[1759571932717,0.01,4489.9,4489.5,2.22741953]
[1759571933020,0.01,4489.9,4489.5,3.0055411]
[1759571933220,0.01,4489.9,4489.8,2.2272707]
[1759571933423,0.01,4489.9,4489.8,4.7555434]
[1759571933598,0.01,4489.9,4489.8,4.7332707]
[1759571937794,0.012,4489.9,4489.8,4.8444707]
[1759571937994,0.012,4489.9,4489.8,7.11190186]
[1759571938513,0.012,4489.9,4489.8,4.88463116]
[1759571938730,0.012,4489.9,4489.8,2.6172]
[1759571938930,0.012,4489.9,4489.8,17.1172]
[1759571939515,0.012,4489.9,4489.8,2.6172]
[1759571941146,0.012,4489.9,4489.8,2.87801711]
[1759571941348,0.012,4489.9,4489.8,2.6172]
[1759571941513,0.012,4489.9,4489.8,4.40673216]
[1759571941847,0.4544,4489.9,4489.8,4.40673216]
[1759571942052,0.012,4489.9,4489.8,1.90073216]
[1759571942236,0.4544,4489.9,4489.8,2.6172]
[1759571945547,0.012,4489.9,4489.8,2.6172]
[1759571946385,0.4544,4489.9,4489.8,2.6172]
[1759571947581,0.012,4489.9,4489.8,2.6172]
[1759571947780,0.012,4489.9,4489.8,4.5516512]
[1759571949759,0.012,4489.9,4489.8,2.6172]
[1759571956198,0.012,4489.9,4489.8,3.41519132]
[1759571956404,0.012,4489.9,4489.8,2.6172]
[1759571956694,0.012,4489.9,4489.8,3.4158368]
[1759571957267,0.012,4489.9,4489.8,3.81499768]
[1759571957469,0.012,4489.9,4489.8,5.86923331]
[1759571957670,0.012,4489.9,4489.8,4.67143563]
[1759571958162,0.012,4489.9,4489.8,5.86923331]
[1759571958461,0.4544,4489.9,4489.8,5.86923331]
[1759571958678,0.4544,4489.9,4489.8,4.67143563]
[1759571959276,0.4544,4489.9,4489.8,3.36323331]
[1759571959475,0.4544,4489.9,4489.8,0.91154271]
[1759571959688,0.4544,4489.9,4489.8,2.6162]
[1759571967826,0.012,4489.9,4489.8,2.6162]
[1759571968026,0.458,4489.9,4489.8,2.6162]
[1759571975165,0.458,4489.9,4489.8,2.6172]
[1759571977361,0.458,4489.9,4489.8,2.506]
[1759571978889,0.458,4489.9,4489.6,0.001]
[1759571979091,0.4719,4489.8,4489.7,2.506]
[1759571979958,0.4719,4489.8,4489.6,0.001]
[1759571980170,0.4719,4489.8,4489.7,2.506]
[1759571981003,0.4719,4489.8,4489.6,0.001]
[1759571981296,0.4719,4489.8,4489.7,2.506]
[1759571988292,0.012,4489.9,4489.7,2.506]
[1759571988488,0.4719,4489.8,4489.7,2.506]
[1759571993412,0.012,4489.9,4489.7,2.506]
[1759571993610,0.4731,4489.8,4489.7,2.506]
[1759571994236,0.4731,4489.8,4489.7,3.30634271]
[1759571994906,0.4731,4489.8,4489.7,2.506]
[1759571995837,0.4731,4489.8,4489.7,3.30634271]
[1759571996139,0.4731,4489.8,4489.7,2.506]
[1759571996534,0.4731,4489.8,4489.7,0.80034271]
[1759571996744,0.9462,4489.8,4489.7,2.506]
[1759571999120,0.9462,4489.8,4489.7,3.30634271]
[1759572000242,0.4731,4489.8,4489.7,3.30634271]
[1759572000611,0.9462,4489.8,4489.7,2.506]
[1759572001250,3.17347979,4489.8,4489.7,2.506]
[1759572001539,3.71494236,4489.8,4489.7,2.506]
[1759572001711,3.82614236,4489.8,4489.7,2.506]
[1759572003156,2.22732031,4489.7,4489.6,0.001]
[1759572003525,2.70042031,4489.7,4489.6,0.001]
[1759572003726,3.30696658,4489.7,4489.6,0.001]
[1759572006641,3.97557592,4489.7,4489.6,0.001]
[1759572007043,6.37557592,4489.7,4489.6,0.001]
[1759572008454,6.41566763,4489.0,4488.9,2.506]
[1759572008855,6.88876763,4489.0,4488.9,2.506]
[1759572009256,7.55743956,4489.0,4488.9,2.506]
[1759572012959,3.36943956,4489.0,4488.9,2.506]
[1759572017135,0.66867193,4489.0,4488.9,2.506]
[1759572017573,0.66867193,4489.0,4488.9,2.5695]
[1759572018284,0.66867193,4489.0,4488.9,2.506]
[1759572020768,1.10757193,4489.0,4488.9,2.506]
[1759572020963,1.4522095,4489.0,4488.9,2.506]